fUSD/lending_fUSD_20250824
["ID","MTS","AMOUNT","RATE_DAILY","PERIOD"]
[381082303,1756012366831,-500.0,0.00011333,2]
[381082304,1756012366853,-500.0,0.00011333,2]
[381082305,1756012366878,-500.0,0.00011333,2]
[381082306,1756012366898,-500.0,0.00011333,2]
[381082307,1756012366919,-500.0,0.00011333,2]
[381082308,1756012366942,-500.0,0.00011333,2]
[381082309,1756012366964,-500.0,0.00011333,2]
[381082310,1756012366985,-500.0,0.00011333,2]
[381082311,1756012367005,-500.0,0.00011333,2]
[381082312,1756012367027,-500.0,0.00011333,2]
[381082313,1756012367048,-265.55295374,0.00011333,2]
[381082314,1756012367068,-500.0,0.00011333,2]
[381082315,1756012367091,-196.61954657,0.00011333,2]
[381082316,1756012367111,-260.0534424,0.00011333,2]
[381082317,1756012367131,-175.65360777,0.00011333,2]
[381082318,1756012367151,-168.89087992,0.00011333,2]
[381082319,1756012367171,-2000.0,0.00011334,3]
[381082320,1756012407333,-175.650417,0.00012405,2]
[381082321,1756012407354,-250.0,0.00012467,2]
[381082322,1756012407376,-2000.0,0.00012467,3]
[381082333,1756012843746,150.0,0.00028767,120]
[381082334,1756012855910,150.0,0.00028767,120]
[381082335,1756012894972,154.93,0.00028767,120]
[381082340,1756013108270,179007.5791526,0.00012,2]
[381082345,1756013170333,2426.86437251,0.000287,120]
[381082364,1756013432218,-1523.0,0.0001165,2]
[381082365,1756013432227,-290.15684169,0.000119,2]
[381082366,1756013432236,-300.0,0.00011999,2]
[381082367,1756013432245,-1200.0,0.00011999,2]
[381082368,1756013432255,-300.0,0.00011999,2]
[381082369,1756013432264,-300.0,0.00011999,2]
[381082370,1756013432273,-150.0,0.00011999,2]
[381082371,1756013432282,-182.03740968,0.00011999,2]
[381082372,1756013432291,-468.22361594,0.00011999,2]
[381082373,1756013432300,-497.98065574,0.00012,2]
[381082374,1756013432310,-2000.0,0.00012,3]
[381082375,1756013432320,-4072.02452114,0.00012,2]
[381082376,1756013432335,-636.47152431,0.00012,2]
[381082377,1756013432348,-1099.65424976,0.00012,2]
[381082378,1756013432360,-693.10460756,0.00012,2]
[381082392,1756013438079,-500.0,0.00011648,2]
[381082393,1756013438088,-196.17255042,0.00011648,2]
[381082394,1756013438098,-1440.59949634,0.00012,2]
[381082463,1756013440026,-19937.62150847,0.00012,2]
[381082464,1756013440036,-480893.41566123,0.00012,2]
[381082465,1756013440183,-1884.1975446,0.00012,2]
[381082504,1756013443058,-4159.15,0.00012,2]
[381082505,1756013443190,-962.26772351,0.00012,2]
[381082509,1756013446219,-10102.86571953,0.00012,2]
[381082510,1756013446231,-1572.32582955,0.00012,2]
[381082514,1756013447059,-383.87296915,0.00012,2]
[381082515,1756013447071,-494.61771879,0.00012,2]
[381082516,1756013447082,-372.43514135,0.00012,2]
[381082517,1756013447093,-1170.916455,0.00012,2]
[381082535,1756014405314,-300.0,0.00011491,2]
[381082536,1756014405336,-203.85968817,0.00011541,2]
[381082537,1756014405360,-500.0,0.0001159,2]
[381082538,1756014405383,-319.95571549,0.0001159,2]
[381082539,1756014405408,-500.0,0.0001159,2]
[381082540,1756014405432,-177.76835685,0.0001159,2]
[381082541,1756014405457,-500.0,0.0001159,2]
[381082542,1756014405482,-500.0,0.0001159,2]
[381082543,1756014405505,-500.0,0.0001159,2]
[381082544,1756014405528,-500.0,0.0001159,2]
[381082545,1756014405552,-500.0,0.0001159,2]
[381082546,1756014405575,-500.0,0.0001159,2]
[381082547,1756014405597,-157.0,0.00011591,2]
[381082548,1756014405620,-451.0,0.00011591,2]
[381082549,1756014405642,-300.0,0.00011591,2]
[381082550,1756014405663,-150.0,0.00011899,2]
[381082551,1756014405685,-215.24595566,0.00011899,2]
[381082552,1756014405708,-183.91455849,0.00011899,2]
[381082553,1756014405730,-591.38213886,0.00011899,2]
[381082554,1756014405752,-550.0,0.000119,2]
[381082555,1756014405773,-2701.2297,0.000119,2]
[381082556,1756014405795,-10134.55256097,0.000119,2]
[381082557,1756014405816,-1000.0,0.000119,2]
[381082558,1756014405839,-156.65684742,0.00011903,2]
[381082559,1756014405861,-277.8574373,0.00011903,2]
[381082560,1756014405884,-8566.9743107,0.00011903,2]
[381082561,1756014405906,-500.0,0.00011973,2]
[381082562,1756014405928,-500.0,0.00011973,2]
[381082563,1756014405950,-500.0,0.00011973,2]
[381082564,1756014405972,-238.60232832,0.00011973,2]
[381082565,1756014405995,-500.0,0.00011973,2]
[381082566,1756014406018,-150.0,0.00011988,2]
[381082567,1756014406040,-810.70791083,0.00011988,2]
[381082568,1756014406063,-1033.25518047,0.00011988,2]
[381082569,1756014406085,-719.66524874,0.00011988,2]
[381082570,1756014406108,-1255.80245011,0.00011989,2]
[381082571,1756014406130,-1478.34971975,0.00011989,2]
[381082572,1756014406152,-1700.89698939,0.00011989,2]
[381082573,1756014406175,-1923.44425903,0.00011989,2]
[381082574,1756014406198,-2145.99152867,0.0001199,2]
[381082575,1756014406221,-2368.53879831,0.0001199,2]
[381082576,1756014406249,-2591.08606796,0.0001199,2]
[381082577,1756014406271,-151.0,0.00011993,2]
[381082578,1756014406293,-500.0,0.00011993,2]
[381082579,1756014406317,-298.09461436,0.00011993,2]
[381082580,1756014406339,-253.13510356,0.00011993,2]
[381082581,1756014406361,-200.0,0.00011993,2]
[381082582,1756014406384,-49744.03253059,0.00012,2]
[381082583,1756014406574,-100000.0,0.00012,2]
[381082584,1756014407104,-98652.35709521,0.00012,2]
[381082585,1756014407128,-1347.64290479,0.00012,2]
[381082586,1756014407972,-100000.0,0.00012,2]
[381082587,1756014408862,-99484.29850574,0.00012,2]
[381082588,1756014408885,-250.0,0.00012003,2]
[381082589,1756014408909,-265.70149426,0.00012328,2]
[381082590,1756014409908,-734.29850574,0.00012328,2]
[381082591,1756014409931,-1000.0,0.00012328,2]
[381082592,1756014409953,-1000.0,0.00012328,2]
[381082593,1756014409975,-987.05,0.00012328,2]
[381082594,1756014409998,-173.04,0.00012437,2]
[381082595,1756014410022,-1000.0,0.00012521,2]
[381082596,1756014410045,-151.0,0.00012541,2]
[381082597,1756014410069,-2000.0,0.0001264,3]
[381082598,1756014410095,-2000.0,0.00012642,3]
[381082617,1756014632863,-500.0,0.00011393,2]
[381082618,1756014632873,-300.0,0.00011588,2]
[381082619,1756014632882,-264.93838518,0.00011589,2]
[381082620,1756014632891,-152.22292157,0.00011589,2]
[381082621,1756014632900,-500.0,0.00011589,2]
[381082622,1756014632909,-514.50373535,0.00011589,2]
[381082623,1756014632919,-500.0,0.00011589,2]
[381082624,1756014632928,-500.0,0.00011589,2]
[381082625,1756014632937,-500.0,0.00011589,2]
[381082626,1756014632946,-500.0,0.00011589,2]
[381082627,1756014632956,-500.0,0.00011589,2]
[381082628,1756014632966,-500.0,0.00011589,2]
[381082629,1756014632977,-500.0,0.00011589,2]
[381082630,1756014632987,-310.0,0.00012532,2]
[381082631,1756014632998,-349.3065,0.00012849,2]
[381082632,1756014633008,-1000.0,0.00012914,2]
[381082633,1756014633017,-250.0,0.00012931,2]
[381082634,1756014633027,-2000.0,0.00012948,3]
[381082635,1756014633036,-310.0,0.00012948,2]
[381082636,1756014633046,-150.0,0.00012948,2]
[381082637,1756014633063,-250.0,0.00013322,2]
[381082638,1756014633073,-310.0,0.00013328,2]
[381082639,1756014633082,-8566.97431068,0.00013604,2]
[381082640,1756014633092,-353.3444643,0.00013606,2]
[381082641,1756014634047,-209.88307719,0.00012946,2]
[381082642,1756014634057,-546.87031333,0.00012946,2]
[381082643,1756014634066,-9781.20809658,0.00013606,2]
[381082644,1756014634076,-151.0,0.00013699,2]
[381082645,1756014634085,-580.9,0.00013699,2]
[381082646,1756014634094,-1000.0,0.00013699,2]
[381082647,1756014634104,-349.37,0.00013699,2]
[381082648,1756014634113,-200.0,0.00013699,2]
[381082649,1756014634122,-322.6107,0.0001383,2]
[381082650,1756014634131,-209.08099929,0.0001383,2]
[381082651,1756014634141,-721.12765535,0.0001383,2]
[381082652,1756014634151,-277.35679052,0.0001383,2]
[381082653,1756014634160,-500.0,0.000141,2]
[381082654,1756014634170,-2000.0,0.00014206,3]
[381082655,1756014634180,-310.0,0.00014206,2]
[381082656,1756014634189,-150.0,0.00014206,2]
[381082657,1756014634199,-250.0,0.00014206,2]
[381082658,1756014634209,-349.37,0.00014384,2]
[381082659,1756014634219,-6365.67793338,0.000145,2]
[381082660,1756014634229,-1000.0,0.00014528,2]
[381082661,1756014634238,-150.0,0.00014532,2]
[381082662,1756014634247,-31102.73045024,0.00014533,2]
[381082663,1756014634257,-221.86666992,0.000149,2]
[381082664,1756014634266,-221.8666699,0.000149,2]
[381082665,1756014634276,-221.8666699,0.000149,2]
[381082666,1756014634285,-250.0,0.00015,2]
[381082667,1756014634294,-1000.0,0.00015,2]
[381082668,1756014634303,-349.37,0.00015068,2]
[381082669,1756014634312,-417.08,0.00015135,2]
[381082670,1756014634321,-287.61899177,0.00015199,2]
[381082671,1756014634331,-8566.97431068,0.00015305,2]
[381082672,1756014634342,-10134.55256088,0.00015313,2]
[381082673,1756014634352,-151.17,0.00015596,2]
[381082674,1756014634361,-152.82,0.00015596,2]
[381082675,1756014634371,-255.0,0.00015651,2]
[381082676,1756014634381,-2000.0,0.00015688,2]
[381082677,1756014634390,-349.37,0.00015753,2]
[381082678,1756014634400,-815.0,0.00016,3]
[381082679,1756014634409,-1000.0,0.00016143,2]
[381082680,1756014634418,-844.35788172,0.00016366,2]
[381082681,1756014634428,-151.0,0.00016438,2]
[381082682,1756014634437,-666.0,0.00016438,3]
[381082683,1756014634447,-349.37,0.00016438,2]
[381082684,1756014634457,-600.0,0.00016438,2]
[381082685,1756014634466,-600.0,0.00016438,2]
[381082686,1756014634476,-600.0,0.00016438,2]
[381082687,1756014634486,-600.0,0.00016438,2]
[381082688,1756014634496,-600.0,0.00016438,2]
[381082689,1756014634505,-600.0,0.00016438,2]
[381082690,1756014634515,-600.0,0.00016438,2]
[381082691,1756014634525,-600.0,0.00016438,2]
[381082692,1756014634534,-600.0,0.00016438,2]
[381082693,1756014634543,-600.0,0.00016438,2]
[381082694,1756014634856,-600.0,0.00016438,2]
[381082695,1756014634879,-298.26089446,0.00016568,2]
[381082696,1756014634888,-151.0,0.00016598,2]
[381082697,1756014634898,-151.0,0.00016617,2]
[381082698,1756014634907,-151.0,0.00016689,2]
[381082699,1756014634916,-151.0,0.00016801,2]
[381082700,1756014634925,-500.0,0.00016867,2]
[381082701,1756014634935,-500.0,0.00016867,2]
[381082702,1756014634944,-500.0,0.00016867,2]
[381082703,1756014634953,-300.0,0.00017,2]
[381082704,1756014634962,-1000.0,0.00017,3]
[381082705,1756014634972,-6817.40633493,0.00017006,2]
[381082706,1756014635000,-348.90554005,0.00017006,2]
[381082886,1756014640256,-151.0,0.0001654,2]
[381082888,1756014640265,-837.05227216,0.00017006,2]
[381082904,1756014643344,-563.61016354,0.00017006,2]
[381082905,1756014643356,-168.80553636,0.00017019,2]
[381083253,1756014647013,-2829.08634694,0.00013699,2]
[381083256,1756014647023,-3942.41346206,0.00017019,2]
[381083343,1756014684101,15000.0,0.000205,30]
[381083348,1756014875966,-924.654758,0.00011526,2]
[381083349,1756014875988,-300.0,0.00011584,2]
[381083350,1756014876218,-150.0,0.00011584,2]
[381083351,1756014876242,-382.80921933,0.00011584,2]
[381083352,1756014876264,-1200.0,0.00011586,2]
[381083353,1756014876288,-2000.0,0.00011587,3]
[381083354,1756014876310,-250.0,0.00011587,2]
[381083355,1756014876333,-2000.0,0.00012745,3]
[381083356,1756014876355,-250.0,0.00012745,2]
[381083357,1756014876377,-2000.0,0.00013585,2]
[381083358,1756014876399,-551.85,0.00013699,2]
[381083359,1756014876421,-203.0,0.00013908,2]
[381083360,1756014876447,-250.0,0.00013908,2]
[381083361,1756014883112,462.71493664,0.00011525,2]
[381083362,1756014883143,635.05762361,0.00011525,2]
[381083363,1756014883257,500.0,0.00011525,2]
[381083364,1756014883342,500.0,0.00011525,2]
[381083365,1756014883443,229.22720922,0.00011525,2]
[381083366,1756014883508,500.0,0.00011525,2]
[381083367,1756014883557,500.0,0.00011525,2]
[381083368,1756014883593,500.0,0.00011525,2]
[381083369,1756014883693,500.0,0.00011525,2]
[381083370,1756014883790,500.0,0.00011525,2]
[381083371,1756014883842,500.0,0.00011525,2]
[381083372,1756014883885,500.0,0.00011525,2]
[381083373,1756014883918,500.0,0.00011525,2]
[381083374,1756014883958,500.0,0.00011525,2]
[381083375,1756014884451,2000.0,0.00013585,2]
[381083376,1756014884858,2000.0,0.00013585,2]
[381083377,1756014884966,2000.0,0.00013585,2]
[381083378,1756014886219,2000.0,0.00013585,2]
[381083379,1756014886947,2000.0,0.00013585,2]
[381083380,1756014887069,2000.0,0.00013585,2]
[381083381,1756014887175,2000.0,0.00013585,2]
[381083382,1756014960804,258.0,0.00028767,120]
[381083386,1756015008395,5073.45230094,0.000287,120]
[381083395,1756015485092,-235.3181484,0.00010742,2]
[381083414,1756015771726,4811.0,0.00017727,7]
[381083415,1756015831590,-524.25,0.00013699,2]
[381083416,1756015831600,-366.5894,0.00014797,2]
[381083417,1756015831611,-269.99140103,0.00014797,2]
[381083418,1756015831621,-1276.11360222,0.00014798,3]
[381083419,1756015831680,-723.88639778,0.00014798,3]
[381083420,1756015831689,-250.0,0.00015,2]
[381083421,1756015831699,-2000.0,0.00015068,3]
[381083422,1756015831708,-411.0,0.00015898,2]
[381083423,1756015831718,-245.0,0.00015898,2]
[381083424,1756015831727,-300.0,0.00015898,2]
[381083425,1756015831737,-305.88,0.00015899,2]
[381083426,1756015831746,-305.83,0.00015899,2]
[381083427,1756015831755,-302.07,0.00015899,2]
[381083428,1756015831765,-302.68,0.00015899,2]
[381083429,1756015831774,-300.83,0.00015899,2]
[381083430,1756015831784,-304.89,0.00015899,2]
[381083431,1756015831793,-2003.56,0.000159,2]
[381083432,1756015831803,-303.42,0.000159,2]
[381083433,1756015831812,-300.53,0.000159,2]
[381083434,1756015831822,-305.57,0.000159,2]
[381083435,1756015831831,-305.84,0.000159,2]
[381083436,1756015831841,-304.05,0.000159,2]
[381083438,1756015831850,-300.87,0.000159,2]
[381083440,1756015831859,-304.4,0.000159,2]
[381083442,1756015831869,-304.56,0.000159,2]
[381083444,1756015831879,-304.55,0.000159,2]
[381083445,1756015831887,-300.59,0.000159,2]
[381083447,1756015831896,-151.0,0.0001594,2]
[381083449,1756015831906,-304.67,0.00015944,2]
[381083451,1756015831915,-302.21,0.00015945,2]
[381083453,1756015831925,-423.78,0.00015945,2]
[381083456,1756015831934,-426.63,0.00015945,2]
[381083458,1756015831943,-419.32,0.00015945,2]
[381083459,1756015831952,-429.57,0.00015946,2]
[381083461,1756015831961,-429.32,0.00015946,2]
[381083463,1756015831970,-425.19,0.00015946,2]
[381083465,1756015831979,-302.36,0.00015946,2]
[381083467,1756015831989,-429.94,0.00015946,2]
[381083469,1756015831998,-432.15,0.00015946,2]
[381083471,1756015832007,-432.98,0.00015946,2]
[381083473,1756015832016,-304.91,0.00015946,2]
[381083475,1756015832025,-429.65,0.00015946,2]
[381083477,1756015832035,-429.82,0.00015946,2]
[381083479,1756015832044,-304.4,0.00015946,2]
[381083481,1756015832053,-430.78,0.00015946,2]
[381083483,1756015832063,-430.93,0.00015946,2]
[381083485,1756015832072,-427.76,0.00015946,2]
[381083486,1756015832081,-304.22,0.00015946,2]
[381083487,1756015832090,-428.55,0.00015946,2]
[381083488,1756015832099,-422.84,0.00015947,2]
[381083489,1756015832109,-417.48,0.00015947,2]
[381083490,1756015832118,-417.78,0.00015947,2]
[381083491,1756015832127,-426.52,0.00015947,2]
[381083492,1756015832137,-424.73,0.00015947,2]
[381083493,1756015832146,-429.56,0.00015947,2]
[381083494,1756015832155,-421.18,0.00015947,2]
[381083495,1756015832165,-301.86,0.00015947,2]
[381083496,1756015832174,-422.71,0.00015948,2]
[381083497,1756015832185,-423.49,0.00015948,2]
[381083498,1756015832203,-422.38,0.00015948,2]
[381083499,1756015832220,-305.31,0.00015948,2]
[381083500,1756015832231,-419.72,0.00015948,2]
[381083501,1756015832240,-427.6,0.00015948,2]
[381083502,1756015832250,-423.18,0.00015948,2]
[381083503,1756015832260,-304.88,0.00015948,2]
[381083504,1756015832269,-428.52,0.00015948,2]
[381083505,1756015832278,-303.82,0.00015948,2]
[381083506,1756015832288,-301.91,0.00015948,2]
[381083507,1756015832297,-302.54,0.00015948,2]
[381083508,1756015832307,-418.26,0.00015948,2]
[381083509,1756015832316,-424.59,0.00015948,2]
[381083510,1756015832325,-422.88,0.00015948,2]
[381083511,1756015832334,-304.92,0.00015948,2]
[381083512,1756015832343,-165.25122969,0.00015948,2]
[381083513,1756015832352,-302.99,0.00015948,2]
[381083514,1756015832362,-433.0,0.00015949,2]
[381083515,1756015832372,-422.96,0.00015949,2]
[381083516,1756015832381,-151.89,0.00015949,2]
[381083517,1756015832390,-421.23,0.00015949,2]
[381083518,1756015832399,-302.25,0.00015949,2]
[381083519,1756015832409,-152.1,0.00015949,2]
[381083520,1756015832418,-417.97,0.00015949,2]
[381083521,1756015832430,-421.0,0.00015949,2]
[381083522,1756015832441,-303.19,0.00015949,2]
[381083523,1756015832450,-428.51,0.00015949,2]
[381083524,1756015832460,-419.47,0.00015949,2]
[381083525,1756015832471,-151.51,0.00015949,2]
[381083526,1756015832481,-424.72,0.00015949,2]
[381083527,1756015832490,-300.11,0.00015949,2]
[381083528,1756015832499,-429.66,0.00015949,2]
[381083529,1756015832511,-150.8,0.00015949,2]
[381083530,1756015832521,-423.64,0.00015949,2]
[381083531,1756015832530,-305.44,0.00015949,2]
[381083532,1756015832540,-420.06,0.00015949,2]
[381083533,1756015832549,-420.6,0.00015949,2]
[381083534,1756015832558,-429.52,0.00015949,2]
[381083535,1756015832567,-301.61,0.00015949,2]
[381083536,1756015832576,-420.2,0.00015949,2]
[381083537,1756015832588,-150.8,0.00015949,2]
[381083538,1756015832598,-431.97,0.00015949,2]
[381083539,1756015832607,-305.01,0.00015949,2]
[381083540,1756015832617,-429.66,0.00015949,2]
[381083541,1756015832627,-426.75,0.00015949,2]
[381083542,1756015832637,-424.56,0.00015949,2]
[381083543,1756015832646,-301.15,0.00015949,2]
[381083544,1756015832655,-425.29,0.00015949,2]
[381083545,1756015832664,-431.57,0.00015949,2]
[381083546,1756015832674,-152.03,0.00015949,2]
[381083547,1756015832683,-424.98,0.00015949,2]
[381083548,1756015832693,-301.94,0.00015949,2]
[381083549,1756015832703,-430.13,0.0001595,2]
[381083550,1756015832712,-428.65,0.0001595,2]
[381083551,1756015832721,-425.85,0.0001595,2]
[381083552,1756015832731,-426.81,0.0001595,2]
[381083553,1756015832740,-150.32,0.0001595,2]
[381083554,1756015832749,-150.49,0.0001595,2]
[381083555,1756015832758,-152.89,0.0001595,2]
[381083556,1756015832768,-151.0,0.0001595,2]
[381083557,1756015832777,-421.33,0.0001595,2]
[381083558,1756015832787,-429.67,0.0001595,2]
[381083559,1756015832796,-430.64,0.0001595,2]
[381083560,1756015832806,-151.11,0.0001595,2]
[381083561,1756015832815,-152.87,0.0001595,2]
[381083562,1756015832824,-150.74,0.0001595,2]
[381083563,1756015832834,-424.87,0.0001595,2]
[381083564,1756015832843,-423.85,0.0001595,2]
[381083565,1756015832852,-419.43,0.00016024,2]
[381083566,1756015832861,-428.89,0.00016024,2]
[381083567,1756015832870,-420.44,0.00016024,2]
[381083568,1756015832880,-431.73,0.00016024,2]
[381083569,1756015832889,-423.06,0.00016142,2]
[381083570,1756015832899,-421.67,0.00016142,2]
[381083571,1756015832908,-416.78,0.00016142,2]
[381083572,1756015832917,-500.0,0.00016323,2]
[381083573,1756015832927,-501.57039534,0.00016323,2]
[381083574,1756015832937,-150.34,0.00016333,2]
[381083575,1756015832946,-150.5,0.00016333,2]
[381083576,1756015832955,-500.0,0.0001645,2]
[381083577,1756015832964,-502.16422154,0.00016593,2]
[381083578,1756015832974,-151.0,0.00016868,2]
[381083579,1756015832983,-151.0,0.0001687,2]
[381083580,1756015832993,-500.0,0.00016871,2]
[381083581,1756015833003,-151.0,0.00016874,2]
[381083582,1756015833012,-151.0,0.00016879,2]
[381083583,1756015833022,-666.0,0.00016888,3]
[381083584,1756015833032,-250.0,0.00016888,2]
[381083585,1756015833041,-170.37813497,0.00016893,2]
[381083586,1756015833050,-500.0,0.00016912,2]
[381083587,1756015833060,-308.44635776,0.00016912,2]
[381083588,1756015833069,-600.0,0.00016912,2]
[381083589,1756015833079,-600.0,0.00016912,2]
[381083590,1756015833089,-600.0,0.00016912,2]
[381083591,1756015833099,-600.0,0.00016912,2]
[381083592,1756015833108,-600.0,0.00016912,2]
[381083593,1756015833118,-600.0,0.00016912,2]
[381083594,1756015833128,-600.0,0.00016912,2]
[381083595,1756015833137,-600.0,0.00016912,2]
[381083596,1756015833147,-600.0,0.00016912,2]
[381083597,1756015833158,-600.0,0.00016912,2]
[381083598,1756015833167,-151.0,0.00016912,2]
[381083599,1756015833177,-264.00881791,0.00016912,2]
[381083600,1756015833186,-151.0,0.00016912,2]
[381083601,1756015833195,-151.0,0.00016912,2]
[381083602,1756015833205,-151.0,0.00016912,2]
[381083603,1756015833214,-151.0,0.00016912,2]
[381083604,1756015833224,-151.0,0.00016912,2]
[381083605,1756015833234,-151.0,0.00016912,2]
[381083606,1756015833243,-151.0,0.00016912,2]
[381083607,1756015833252,-513.55084302,0.00016912,2]
[381083608,1756015833262,-844.35788172,0.00016977,2]
[381083609,1756015833272,-2000.0,0.00016993,2]
[381083610,1756015833282,-152.72,0.00016998,2]
[381083611,1756015833291,-152.11,0.00016998,2]
[381083612,1756015833300,-300.0,0.00017,2]
[381083613,1756015833309,-155.0,0.00017204,2]
[381083614,1756015833319,-2000.0,0.000173,2]
[381083615,1756015833328,-1000.0,0.00017465,2]
[381083616,1756015833337,-769.84,0.00017592,2]
[381083617,1756015833346,-360.45226427,0.00017608,2]
[381083618,1756015833355,-158.20015608,0.00017628,2]
[381083619,1756015833364,-903.71754365,0.00017727,7]
[381083620,1756015833373,-13702.04180427,0.00017727,7]
[381083621,1756015833382,-61004.5779092,0.00017728,2]
[381083624,1756015834496,-941.85870651,0.00017728,2]
[381083626,1756015837370,-267.96645353,0.00015067,2]
[381083627,1756015837380,-151.0,0.00016865,2]
[381083628,1756015837389,-9782.21192466,0.00017728,2]
[381083629,1756015837590,-6712.3515076,0.00017728,2]
[381083630,1756015837988,-694.46353124,0.00017728,2]
[381083631,1756015839617,-1372.8,0.00017728,2]
[381083632,1756015839679,-18680.37177605,0.00017728,2]
[381083644,1756015842774,-253.88923684,0.00017728,2]
[381083653,1756015846085,-1435.70000046,0.00017728,2]
[381083672,1756016768664,426.92450395,0.00028,120]
[381083688,1756016907037,-500.0,0.00032372,120]
[381083689,1756016907064,-500.0,0.00032372,120]
[381083690,1756016907090,-500.0,0.00032372,120]
[381083691,1756016907114,-500.0,0.00032372,120]
[381083692,1756016907138,-500.0,0.00032372,120]
[381083693,1756016907162,-500.0,0.00032372,120]
[381083694,1756016907187,-1264.0,0.00032372,120]
[381083695,1756016907213,-574.0,0.00032372,120]
[381083696,1756016907237,-500.0,0.00032372,120]
[381083697,1756016907260,-500.0,0.00032372,120]
[381083698,1756016907282,-500.0,0.00032372,120]
[381083699,1756016907305,-500.0,0.00032372,120]
[381083700,1756016907328,-448.70761712,0.00032372,120]
[381083701,1756016907351,-1000.0,0.00032372,120]
[381083702,1756016907373,-316.0,0.00032372,60]
[381083703,1756016907398,-3000.0,0.00032372,120]
[381083704,1756016907421,-1000.0,0.00032372,30]
[381083705,1756016907444,-1000.0,0.00032372,60]
[381083706,1756016907467,-1000.0,0.00032372,30]
[381083707,1756016907490,-500.0,0.00032372,120]
[381083708,1756016907513,-500.0,0.00032372,120]
[381083709,1756016907537,-500.0,0.00032372,120]
[381083710,1756016907561,-500.0,0.00032372,120]
[381083711,1756016907586,-500.0,0.00032372,120]
[381083712,1756016907610,-500.0,0.00032372,120]
[381083713,1756016907634,-220.29565702,0.00032372,120]
[381083714,1756016907658,-1000.0,0.00032372,60]
[381083715,1756016907681,-1000.0,0.00032372,30]
[381083716,1756016907706,-1000.0,0.00032372,30]
[381083717,1756016907729,-1000.0,0.00032372,60]
[381083718,1756016907756,-1000.0,0.00032372,60]
[381083719,1756016907780,-426.4641,0.00032372,60]
[381083720,1756016907804,-1000.0,0.00032372,30]
[381083721,1756016907827,-1000.0,0.00032372,120]
[381083722,1756016907851,-1000.0,0.00032372,30]
[381083723,1756016907875,-1000.0,0.00032372,30]
[381083724,1756016907899,-1000.0,0.00032372,60]
[381083725,1756016907929,-1000.0,0.00032372,60]
[381083726,1756016907953,-1000.0,0.00032372,30]
[381083727,1756016907979,-1000.0,0.00032372,30]
[381083728,1756016908003,-1000.0,0.00032372,30]
[381083729,1756016908026,-1000.0,0.00032372,30]
[381083730,1756016908049,-1000.0,0.00032372,30]
[381083731,1756016908074,-1000.0,0.00032372,30]
[381083732,1756016908096,-1000.0,0.00032372,30]
[381083733,1756016908120,-1000.0,0.00032372,30]
[381083734,1756016908143,-1000.0,0.00032372,30]
[381083735,1756016908168,-1000.0,0.00032372,30]
[381083736,1756016908192,-1000.0,0.00032372,30]
[381083737,1756016908545,-1000.0,0.00032372,30]
[381083738,1756016908571,-1000.0,0.00032372,30]
[381083739,1756016908595,-867.6434569,0.00032372,30]
[381083740,1756016908620,-1000.0,0.00032372,30]